[Event "Rapid della Domenica"]
[Site "Chess.com"]
[Date "2020.04.26"]
[Round "6"]
[White "caramante"]
[Black "Luca090267"]
[Result "0-1"]
[WhiteElo "1522"]
[BlackElo "1435"]
[TimeControl "720+3"]
[EndTime "8:27:57 PDT"]
[Termination "Luca090267 ha vinto per abbandono"]

1. Nf3 {[%clk 0:11:51]} 1... Nf6 {[%clk 0:12:00.9]} 2. d4 {[%clk 0:11:50.6]}
2... g6 {[%clk 0:11:56.3]} 3. g3 {[%clk 0:11:52.1]} 3... Bg7 {[%clk 0:11:57.8]}
4. Bg2 {[%clk 0:11:54.2]} 4... O-O {[%clk 0:11:59.1]} 5. c3 {[%clk 0:11:56.2]}
5... d6 {[%clk 0:11:59]} 6. O-O {[%clk 0:11:57.7]} 6... Nc6 {[%clk 0:11:53.1]}
7. Re1 {[%clk 0:11:59.4]} 7... Rb8 {[%clk 0:11:43]} 8. e4 {[%clk 0:12:00.1]}
8... e6 {[%clk 0:11:14.6]} 9. Qc2 {[%clk 0:11:59.4]} 9... h6 {[%clk 0:11:01]}
10. h3 {[%clk 0:11:58.9]} 10... Re8 {[%clk 0:10:18.4]} 11. Be3 {[%clk
0:11:55.8]} 11... e5 {[%clk 0:09:45.3]} 12. d5 {[%clk 0:11:54.5]} 12... Ne7
{[%clk 0:09:24.4]} 13. Bxa7 {[%clk 0:11:52.1]} 13... Ra8 {[%clk 0:09:26.3]} 14.
Be3 {[%clk 0:11:52.7]} 14... b6 {[%clk 0:09:19.9]} 15. c4 {[%clk 0:11:50.4]}
15... Ba6 {[%clk 0:08:59.8]} 16. b3 {[%clk 0:11:50.5]} 16... Qc8 {[%clk
0:08:58]} 17. Nc3 {[%clk 0:11:48]} 17... c6 {[%clk 0:08:49.2]} 18. Rac1 {[%clk
0:11:45.8]} 18... Qb7 {[%clk 0:08:25.3]} 19. Na4 {[%clk 0:11:23.9]} 19... b5
{[%clk 0:08:15.2]} 20. cxb5 {[%clk 0:11:19.1]} 20... Bxb5 {[%clk 0:08:11.9]} 21.
Nc3 {[%clk 0:11:19.8]} 21... cxd5 {[%clk 0:07:44.7]} 22. Nxb5 {[%clk 0:11:19.1]}
22... Qxb5 {[%clk 0:07:44.7]} 23. Bf1 {[%clk 0:11:20.7]} 23... Qa5 {[%clk
0:06:28.6]} 24. exd5 {[%clk 0:11:12.8]} 24... Nfxd5 {[%clk 0:06:07.6]} 25. Bc4
{[%clk 0:11:11.7]} 25... Nxe3 {[%clk 0:05:42.4]} 26. Rxe3 {[%clk 0:11:07.6]}
26... Rac8 {[%clk 0:05:25.5]} 27. Qd3 {[%clk 0:10:58.2]} 27... d5 {[%clk
0:04:57.5]} 28. Nxe5 {[%clk 0:10:31.7]} 28... dxc4 {[%clk 0:04:40.8]} 29. Rxc4
{[%clk 0:10:19.6]} 29... Rxc4 {[%clk 0:04:24.4]} 30. Nxc4 {[%clk 0:10:20.3]}
30... Qd8 {[%clk 0:03:26]} 31. Nd6 {[%clk 0:10:07.4]} 31... Rf8 {[%clk
0:03:07.8]} 32. Qe2 {[%clk 0:09:39.2]} 32... Nd5 {[%clk 0:02:35.1]} 33. Nxf7
{[%clk 0:09:25.9]} 33... Kxf7 {[%clk 0:02:08.5]} 34. Rf3+ {[%clk 0:09:15.9]}
34... Kg8 {[%clk 0:02:06.9]} 35. Qe6+ {[%clk 0:09:12.5]} 35... Kh7 {[%clk
0:02:03.1]} 36. Rd3 {[%clk 0:09:12.8]} 36... Nc7 {[%clk 0:01:33.6]} 37. Qc4
{[%clk 0:08:58.6]} 37... Qf6 {[%clk 0:01:18.6]} 38. f4 {[%clk 0:08:52.1]} 38...
Ne6 {[%clk 0:01:15.1]} 39. Kg2 {[%clk 0:08:39]} 39... Nxf4+ {[%clk 0:01:13.2]}
40. gxf4 {[%clk 0:08:32.5]} 40... Qxf4 {[%clk 0:01:15]} 41. Qxf4 {[%clk
0:08:32.6]} 41... Rxf4 {[%clk 0:01:15.4]} 42. Kg3 {[%clk 0:08:32.5]} 42... Re4
{[%clk 0:01:13.3]} 43. Kf3 {[%clk 0:08:32.3]} 43... Rb4 {[%clk 0:01:10.4]} 44.
a4 {[%clk 0:08:30.8]} 44... g5 {[%clk 0:01:09]} 45. Ke2 {[%clk 0:08:17.1]} 45...
Kg6 {[%clk 0:01:07.3]} 46. Kd2 {[%clk 0:08:10.9]} 46... h5 {[%clk 0:01:04.7]}
47. Kc2 {[%clk 0:08:12.7]} 47... g4 {[%clk 0:01:02.7]} 48. hxg4 {[%clk
0:08:12.6]} 48... hxg4 {[%clk 0:01:03.9]} 49. Rd7 {[%clk 0:08:01.1]} 49... Bf6
{[%clk 0:01:02.6]} 50. Rd6 {[%clk 0:08:00.8]} 50... Kg5 {[%clk 0:01:03.8]} 51.
Rd5+ {[%clk 0:08:00]} 51... Kh4 {[%clk 0:01:03.6]} 52. a5 {[%clk 0:08:01.1]}
52... g3 {[%clk 0:01:02.3]} 53. a6 {[%clk 0:08:01.5]} 53... g2 {[%clk
0:01:03.2]} 54. Rd1 {[%clk 0:08:02.2]} 54... Bd4 {[%clk 0:01:02.5]} 55. Re1
{[%clk 0:07:24.5]} 55... g1=Q {[%clk 0:01:00.7]} 56. Rxg1 {[%clk 0:07:26.3]}
56... Bxg1 {[%clk 0:01:01.2]} 57. Kc3 {[%clk 0:07:28.3]} 57... Rb8 {[%clk
0:00:53.7]} 58. b4 {[%clk 0:07:30]} 58... Ba7 {[%clk 0:00:51.7]} 59. Kc4 {[%clk
0:07:30.7]} 59... Kg5 {[%clk 0:00:53.1]} 60. b5 {[%clk 0:07:32.7]} 60... Kf6
{[%clk 0:00:53.7]} 61. Kd5 {[%clk 0:07:24.8]} 61... Ke7 {[%clk 0:00:54.8]} 62.
Kc6 {[%clk 0:07:26.4]} 62... Kd8 {[%clk 0:00:56]} 63. b6 {[%clk 0:07:14.3]}
63... Bxb6 {[%clk 0:00:50.5]} 64. Kd6 {[%clk 0:07:09.3]} 64... Ba7 {[%clk
0:00:48.4]} 65. Kc6 {[%clk 0:07:11.1]} 65... Kc8 {[%clk 0:00:50.2]} 66. Kd6
{[%clk 0:07:11.3]} 66... Rb6+ {[%clk 0:00:51]} 0-1

[Event "Rapid della Domenica"]
[Site "Chess.com"]
[Date "2020.04.26"]
[Round "6"]
[White "sirmale49"]
[Black "MarcoCiva"]
[Result "1-0"]
[WhiteElo "1419"]
[BlackElo "1404"]
[TimeControl "720+3"]
[EndTime "8:29:37 PDT"]
[Termination "sirmale49 ha vinto per abbandono"]

1. e4 {[%clk 0:11:58]} 1... f6 {[%clk 0:11:58.1]} 2. f4 {[%clk 0:11:59.5]} 2...
c6 {[%clk 0:11:54.4]} 3. Nf3 {[%clk 0:11:51.6]} 3... Kf7 {[%clk 0:11:56]} 4. Nc3
{[%clk 0:11:48.4]} 4... Ke6 {[%clk 0:11:54.2]} 5. d4 {[%clk 0:11:48.1]} 5... Kd6
{[%clk 0:11:52.7]} 6. f5 {[%clk 0:11:48.8]} 6... Kc7 {[%clk 0:11:49.5]} 7. Bf4+
{[%clk 0:11:49.6]} 7... d6 {[%clk 0:11:14.1]} 8. d5 {[%clk 0:11:26.8]} 8... Bd7
{[%clk 0:10:54.2]} 9. Nd4 {[%clk 0:11:15.7]} 9... c5 {[%clk 0:10:14.8]} 10. Ne6+
{[%clk 0:11:01]} 10... Bxe6 {[%clk 0:10:11.9]} 11. fxe6 {[%clk 0:10:59]} 11...
g5 {[%clk 0:10:06.8]} 12. Bg3 {[%clk 0:10:50.1]} 12... Kc8 {[%clk 0:09:56.5]}
13. Bc4 {[%clk 0:10:24.3]} 13... a6 {[%clk 0:09:49]} 14. O-O {[%clk 0:10:18.1]}
14... b5 {[%clk 0:09:48.4]} 15. Be2 {[%clk 0:10:06.6]} 15... Qb6 {[%clk
0:09:45.4]} 16. Bf2 {[%clk 0:10:01.8]} 16... h5 {[%clk 0:09:41.5]} 17. b4 {[%clk
0:09:50.5]} 17... g4 {[%clk 0:09:33.5]} 18. g3 {[%clk 0:09:44.7]} 18... Bh6
{[%clk 0:09:18.1]} 19. a4 {[%clk 0:09:34.4]} 19... Qb7 {[%clk 0:08:22.4]} 20.
axb5 {[%clk 0:09:23.5]} 20... a5 {[%clk 0:08:17.7]} 21. bxa5 {[%clk 0:08:36.7]}
21... Bg7 {[%clk 0:08:11.9]} 22. b6 {[%clk 0:07:43.2]} 22... f5 {[%clk
0:08:10.1]} 23. Be1 {[%clk 0:07:31.2]} 23... Na6 {[%clk 0:07:58.4]} 24. Rb1
{[%clk 0:07:22.3]} 24... Nb4 {[%clk 0:07:51.7]} 25. Nb5 {[%clk 0:06:55.2]} 25...
Rxa5 {[%clk 0:07:47.7]} 26. Bxb4 {[%clk 0:06:28.1]} 26... cxb4 {[%clk
0:07:34.4]} 27. Rxb4 {[%clk 0:06:24.8]} 27... Qxb6+ {[%clk 0:07:32.4]} 28. Kh1
{[%clk 0:06:19.1]} 28... Bc3 {[%clk 0:06:16.7]} 29. Rb3 {[%clk 0:06:12.3]} 29...
Be5 {[%clk 0:05:52.3]} 30. Qd3 {[%clk 0:05:53.3]} 30... Nf6 {[%clk 0:05:43.3]}
31. Qc4+ {[%clk 0:05:20.9]} 31... Qc5 {[%clk 0:05:17.1]} 32. Qxc5+ {[%clk
0:04:12.5]} 32... dxc5 {[%clk 0:05:17]} 33. Bd3 {[%clk 0:04:02.8]} 33... fxe4
{[%clk 0:05:15.3]} 34. Bc4 {[%clk 0:03:31]} 34... h4 {[%clk 0:05:12.9]} 35. Rf5
{[%clk 0:03:22.5]} 35... Ra1+ {[%clk 0:04:42.4]} 36. Kg2 {[%clk 0:03:10.2]}
36... h3+ {[%clk 0:04:39.8]} 37. Kf2 {[%clk 0:03:05.5]} 37... Bd4+ {[%clk
0:04:40.7]} 38. Nxd4 {[%clk 0:03:02.3]} 38... cxd4 {[%clk 0:04:41.1]} 39. d6
{[%clk 0:02:44.9]} 39... e3+ {[%clk 0:04:38.2]} 40. Ke2 {[%clk 0:02:40.7]} 40...
Ne4 {[%clk 0:04:24.7]} 41. d7+ {[%clk 0:02:32.5]} 41... Kc7 {[%clk 0:04:05.7]}
42. Bd3 {[%clk 0:02:00.6]} 42... Nc3+ {[%clk 0:04:03.9]} 43. Rxc3+ {[%clk
0:01:44.1]} 43... dxc3 {[%clk 0:04:05.7]} 44. Rc5+ {[%clk 0:01:35.3]} 44... Kb7
{[%clk 0:03:32.6]} 45. Be4+ {[%clk 0:01:30.2]} 45... Kb6 {[%clk 0:03:21.6]} 46.
Rc8 {[%clk 0:01:28.1]} 46... Rxc8 {[%clk 0:03:05.8]} 47. dxc8=Q {[%clk
0:01:11.7]} 47... Rc1 {[%clk 0:03:02.1]} 48. Qc6+ {[%clk 0:01:11.7]} 48... Ka5
{[%clk 0:03:00.8]} 49. Qxc3+ {[%clk 0:01:11.8]} 49... Kb6 {[%clk 0:02:55.6]} 50.
Qb2+ {[%clk 0:01:11.2]} 50... Kc5 {[%clk 0:02:55.6]} 51. Qxc1 {[%clk 0:01:09.9]}
51... Kd6 {[%clk 0:02:57.6]} 52. Kxe3 {[%clk 0:01:10.5]} 52... Kxe6 {[%clk
0:02:57.3]} 53. c4 {[%clk 0:01:10.9]} 53... Kd6 {[%clk 0:02:58.6]} 54. c5+
{[%clk 0:01:12.3]} 54... Kc7 {[%clk 0:03:00.1]} 55. c6 {[%clk 0:01:12.7]} 55...
e5 {[%clk 0:03:01.1]} 56. Qc3 {[%clk 0:01:12]} 1-0

[Event "Rapid della Domenica"]
[Site "Chess.com"]
[Date "2020.04.26"]
[Round "6"]
[White "fausto2p"]
[Black "Lavolpeneldeserto"]
[Result "1-0"]
[WhiteElo "1017"]
[BlackElo "643"]
[TimeControl "720+3"]
[EndTime "8:30:29 PDT"]
[Termination "fausto2p ha vinto per abbandono"]

1. d4 {[%clk 0:12:02.3]} 1... d5 {[%clk 0:11:58.5]} 2. c4 {[%clk 0:12:00.4]}
2... Nf6 {[%clk 0:11:53.6]} 3. Nc3 {[%clk 0:11:55.9]} 3... c6 {[%clk 0:11:41.6]}
4. Nf3 {[%clk 0:11:55.9]} 4... Bf5 {[%clk 0:11:29.8]} 5. Qb3 {[%clk 0:11:49.7]}
5... b6 {[%clk 0:11:10.9]} 6. e3 {[%clk 0:11:21.1]} 6... Nbd7 {[%clk 0:11:01.5]}
7. cxd5 {[%clk 0:11:17.5]} 7... cxd5 {[%clk 0:10:33.9]} 8. Nxd5 {[%clk
0:11:16.4]} 8... Nxd5 {[%clk 0:10:28.9]} 9. Qxd5 {[%clk 0:11:12.4]} 9... e6
{[%clk 0:10:23]} 10. Qb3 {[%clk 0:11:03.6]} 10... Rc8 {[%clk 0:10:01]} 11. Bb5
{[%clk 0:10:52.4]} 11... Bd6 {[%clk 0:09:13.2]} 12. O-O {[%clk 0:10:37]} 12...
O-O {[%clk 0:09:11.6]} 13. Bxd7 {[%clk 0:10:22.3]} 13... Qxd7 {[%clk 0:09:10.5]}
14. Ne5 {[%clk 0:10:11.7]} 14... Qe8 {[%clk 0:08:39.8]} 15. Bd2 {[%clk 0:09:39]}
15... Qe7 {[%clk 0:07:53.4]} 16. Rfc1 {[%clk 0:09:12.7]} 16... Rxc1+ {[%clk
0:07:15.2]} 17. Rxc1 {[%clk 0:09:09.6]} 17... Qg5 {[%clk 0:06:58.8]} 18. Nf3
{[%clk 0:08:56]} 18... Qh5 {[%clk 0:06:22.5]} 19. d5 {[%clk 0:06:28.6]} 19...
Be4 {[%clk 0:06:02.9]} 20. Qd1 {[%clk 0:06:11]} 20... Qg4 {[%clk 0:04:25.9]} 21.
h3 {[%clk 0:05:31]} 21... Qf5 {[%clk 0:03:23.3]} 22. a3 {[%clk 0:04:08.9]} 22...
Bxf3 {[%clk 0:03:05]} 23. Qxf3 {[%clk 0:04:08.5]} 23... Qxf3 {[%clk 0:02:58.7]}
24. gxf3 {[%clk 0:04:07.3]} 24... f5 {[%clk 0:02:56.5]} 25. dxe6 {[%clk
0:04:04.2]} 25... Re8 {[%clk 0:02:53.1]} 26. Rc6 {[%clk 0:03:47.3]} 26... Rxe6
{[%clk 0:02:25.1]} 27. Kg2 {[%clk 0:03:47.3]} 27... Kf7 {[%clk 0:02:25.1]} 28.
Bc3 {[%clk 0:03:20.5]} 28... Be5 {[%clk 0:00:55.7]} 29. Rxe6 {[%clk 0:03:10.5]}
29... Kxe6 {[%clk 0:00:54.3]} 30. Bxe5 {[%clk 0:03:02.5]} 30... Kxe5 {[%clk
0:00:56.3]} 31. Kf1 {[%clk 0:03:01.3]} 31... g5 {[%clk 0:00:57.3]} 32. Ke2
{[%clk 0:03:02]} 32... f4 {[%clk 0:00:53.5]} 33. exf4+ {[%clk 0:02:58.9]} 33...
gxf4 {[%clk 0:00:49]} 34. Kd3 {[%clk 0:02:49.4]} 34... Kd5 {[%clk 0:00:44.4]}
35. b3 {[%clk 0:02:49.3]} 35... a5 {[%clk 0:00:42.9]} 36. h4 {[%clk 0:02:41.7]}
36... b5 {[%clk 0:00:38.4]} 37. h5 {[%clk 0:02:33.9]} 37... h6 {[%clk
0:00:30.2]} 38. Kc3 {[%clk 0:02:30.6]} 38... Kc5 {[%clk 0:00:29.6]} 39. Kd3
{[%clk 0:02:30.9]} 39... a4 {[%clk 0:00:28.3]} 40. bxa4 {[%clk 0:02:22.3]} 40...
bxa4 {[%clk 0:00:28.4]} 41. Kc3 {[%clk 0:02:22.4]} 41... Kb5 {[%clk 0:00:22.1]}
42. Kd4 {[%clk 0:02:23.3]} 42... Ka5 {[%clk 0:00:16.9]} 43. Ke4 {[%clk
0:02:24.8]} 43... Kb5 {[%clk 0:00:17.6]} 44. Kxf4 {[%clk 0:02:26.2]} 44... Kc4
{[%clk 0:00:19.5]} 45. Ke4 {[%clk 0:02:25.3]} 45... Kb3 {[%clk 0:00:20.8]} 46.
f4 {[%clk 0:02:25.1]} 46... Kxa3 {[%clk 0:00:21.1]} 47. f5 {[%clk 0:02:25.9]}
47... Kb3 {[%clk 0:00:22.5]} 48. f6 {[%clk 0:02:26.4]} 48... a3 {[%clk
0:00:24.1]} 49. f7 {[%clk 0:02:27.7]} 49... a2 {[%clk 0:00:25.7]} 50. f8=Q
{[%clk 0:02:26.7]} 50... a1=Q {[%clk 0:00:25.6]} 51. Qf7+ {[%clk 0:02:25.4]}
51... Kb2 {[%clk 0:00:24.1]} 52. Qf6+ {[%clk 0:02:24.1]} 52... Kb1 {[%clk
0:00:23.6]} 53. Qxa1+ {[%clk 0:02:22.4]} 53... Kxa1 {[%clk 0:00:24.8]} 54. f4
{[%clk 0:02:21.5]} 54... Kb2 {[%clk 0:00:22.9]} 55. f5 {[%clk 0:02:23.4]} 55...
Kc3 {[%clk 0:00:22.7]} 56. f6 {[%clk 0:02:23.9]} 56... Kc4 {[%clk 0:00:22.9]}
57. f7 {[%clk 0:02:25.5]} 1-0